bitfinex/quotes_SOLUSD_20250706
["timestamp","ask_amount","ask_price","bid_price","bid_amount"]
[1751826670740,8.1728,151.98,151.94,6.64154534]
[1751826670931,13.98634475,151.98,151.94,6.64154534]
[1751826673447,13.98634475,151.98,151.94,0.06]
[1751826673750,5.81354475,151.97,151.94,0.06]
[1751826675634,5.81354475,151.97,151.94,6.64154534]
[1751826678645,8.1728,151.98,151.94,0.06]
[1751826678646,5.81354475,151.95,151.94,0.06]
[1751826681552,8.1728,151.98,151.94,0.06]
[1751826681762,5.81354475,151.96,151.94,0.06]
[1751826682054,8.1728,151.98,151.94,0.06]
[1751826682232,5.81354475,151.96,151.94,0.06]
[1751826682630,5.81354475,151.97,151.94,0.06]
[1751826683533,5.81354475,151.96,151.94,0.06]
[1751826685850,8.1728,151.98,151.94,0.06]
[1751826686154,5.81354475,151.96,151.94,0.06]
[1751826686358,5.81354475,151.95,151.94,0.06]
[1751826689448,14.75265794,151.98,151.94,0.06]
[1751826689652,5.81354475,151.95,151.94,0.06]
[1751826689839,5.81354475,151.96,151.94,0.06]
[1751826691455,5.81354475,151.95,151.94,0.06]
[1751826692141,5.81354475,151.96,151.94,0.06]
[1751826695366,5.81354475,151.95,151.94,0.06]
[1751826695666,5.81354475,151.96,151.94,0.06]
[1751826695966,5.81354475,151.95,151.94,0.06]
[1751826696964,4.66249178,151.95,151.94,0.06]
[1751826703373,26.73552182,151.95,151.94,0.06]
[1751826704949,29.36366668,151.95,151.94,0.06]
[1751826710472,55.36366668,151.95,151.94,0.06]
[1751826714567,55.3541688,151.95,151.94,0.06]
[1751826714976,48.06353216,151.95,151.94,0.06]
[1751826715182,55.3541688,151.95,151.94,0.06]
[1751826720484,55.3841688,151.95,151.94,0.06]
[1751826721474,0.03,151.95,151.94,0.06]
[1751826722183,0.03,151.95,151.94,7.35063664]
[1751826722488,1e-08,151.95,151.94,26.0002855]
[1751826722662,0.03,151.99,151.95,18.64964886]
[1751826722977,0.03,151.99,151.98,7.29063664]
[1751826723376,0.03,152.0,151.99,25.22902908]
[1751826723574,14.58502126,152.06,152.02,7.29063664]
[1751826723765,7.29063664,152.05,152.01,7.29063664]
[1751826723968,7.29063664,152.03,151.99,30.31846741]
[1751826724493,7.29063664,152.02,151.99,6.57938022]
[1751826724990,7.29063664,152.01,151.99,6.57938022]
[1751826725897,7.29063664,152.01,151.98,6.57981313]
[1751826726270,7.29063664,152.02,151.98,6.57981313]
[1751826726886,7.29063664,152.02,151.98,13.87044977]
[1751826727589,7.29063664,152.03,151.98,13.87044977]
[1751826728596,178.67604454,152.07,151.98,23.02934596]
[1751826728782,7.29063664,152.03,151.99,7.29063664]
[1751826729882,172.1,152.07,152.0,6.57894736]
[1751826730070,7.29063664,152.04,152.0,6.57894736]
[1751826730278,7.29063664,152.03,152.0,6.57894736]
[1751826731681,7.29063664,152.03,151.98,30.3199826]
[1751826731880,7.29063664,152.02,151.98,30.3199826]
[1751826732097,7.29063664,152.02,151.98,13.87044977]
[1751826732295,7.29063664,152.01,151.98,6.57981313]
[1751826733301,6.57637674,152.06,151.98,6.57981313]
[1751826733504,7.29063664,152.02,151.98,13.87044977]
[1751826735804,6.57637674,152.06,151.98,13.87044977]
[1751826735979,7.29063664,152.02,151.98,13.87044977]
[1751826736602,7.29063664,152.02,151.98,6.57981313]
[1751826736888,146.0,152.05,151.98,6.57981313]
[1751826737085,7.29063664,152.01,151.98,6.57981313]
[1751826737494,7.29063664,152.02,151.98,13.87044977]
[1751826737694,7.29063664,152.01,151.98,6.57981313]
[1751826737889,7.29063664,151.99,151.96,6.58067912]
[1751826739204,7.29063664,152.0,151.96,6.58067912]
[1751826740686,7.29063664,152.0,151.96,13.87131576]
[1751826741391,7.29063664,152.01,151.96,30.32301357]
[1751826742504,7.29063664,152.01,151.96,23.03237693]
[1751826742711,7.29063664,151.99,151.96,6.58067912]
[1751826743504,7.29063664,151.98,151.95,6.5811122]
[1751826743682,7.29063664,151.96,151.95,6.5811122]
[1751826744180,146.0,151.99,151.95,6.5811122]
[1751826744381,7.29063664,151.98,151.95,6.5811122]
[1751826746620,7.29063664,151.98,151.94,0.06]
[1751826746783,7.29063664,151.98,151.94,7.35063664]
[1751826747791,7.29063664,151.98,151.95,6.5811122]
[1751826751620,7.29063664,151.98,151.94,0.06]
[1751826751799,7.29063664,151.98,151.94,7.35063664]
[1751826753015,7.29063664,151.98,151.95,6.5811122]
[1751826754313,146.0,151.99,151.95,6.5811122]
[1751826754615,153.29063664,151.99,151.95,13.87174884]
[1751826759604,146.0,151.99,151.96,7.29063664]
[1751826760723,153.29063664,151.99,151.95,23.03389271]
[1751826761202,153.29063664,151.99,151.95,30.32452935]
[1751826761403,146.0,151.99,151.95,30.32452935]
[1751826761614,146.0,151.99,151.95,16.45278051]
[1751826761916,146.0,151.99,151.95,23.74341715]
[1751826762408,153.29063664,151.99,151.95,7.29063664]
[1751826762605,7.29063664,151.98,151.94,7.35063664]
[1751826762908,4.66073686,151.98,151.94,4.72073686]
[1751826763610,4.66073686,151.98,151.94,0.06]
[1751826763798,4.66073686,151.98,151.94,4.72073686]
[1751826763998,150.66073686,151.99,151.95,4.66073686]
[1751826764822,153.28146505,151.99,151.95,7.28146505]
[1751826765201,153.28146505,151.99,151.95,6.5811122]
[1751826765399,7.28146505,151.96,151.94,0.06]
[1751826765617,7.28146505,151.95,151.94,6.64154265]
[1751826766318,7.28146505,151.95,151.94,0.06]
[1751826766520,7.28146505,151.95,151.94,6.64154534]
[1751826766726,7.28146505,151.95,151.94,0.06]
[1751826767423,146.0,151.97,151.94,0.06]
[1751826767822,7.28146505,151.95,151.94,0.06]
[1751826770255,146.0,151.97,151.94,0.06]
[1751826770425,7.28146505,151.96,151.94,0.06]
[1751826776729,146.0,151.97,151.95,7.28146505]
[1751826777027,7.28146505,152.0,151.95,7.28146505]
[1751826778237,7.28146505,152.0,151.96,6.58067912]
[1751826778624,7.30090805,152.01,151.96,6.58067912]
[1751826778625,7.28146505,151.99,151.96,6.58067912]
[1751826779225,7.28146505,151.97,151.95,6.5809707]
[1751826779429,7.28146505,151.96,151.95,6.5809707]
[1751826779829,7.28146505,151.96,151.94,6.64140443]
[1751826780136,7.28146505,151.95,151.94,0.06]
[1751826786141,1.6136,151.98,151.94,0.06]
[1751826786336,7.28146505,151.95,151.94,0.06]
[1751826794345,146.0,151.97,151.94,0.06]
[1751826794545,7.28146505,151.95,151.94,0.06]
[1751826800924,7.28146505,151.96,151.94,0.06]
[1751826801228,7.28146505,151.95,151.94,0.06]
[1751826802736,14.59193822,151.95,151.94,0.06]
[1751826805351,7.28146505,151.95,151.94,0.06]
[1751826810251,14.60441932,151.95,151.94,0.06]
[1751826810954,7.28146505,151.95,151.94,0.06]
[1751826812745,14.60487506,151.95,151.94,0.06]
[1751826812941,7.32341001,151.95,151.94,0.06]
[1751826813152,146.0,151.96,151.94,0.06]
[1751826813356,7.28146505,151.95,151.94,0.06]
[1751826813955,153.28146505,151.96,151.94,0.06]
[1751826814158,14.60426486,151.95,151.94,0.06]
[1751826814848,7.32279981,151.95,151.94,0.06]
[1751826815165,146.0,151.96,151.94,0.06]
[1751826815960,146.0,151.96,151.95,7.28146505]
[1751826816149,7.31146505,152.0,151.96,6.58067912]
[1751826816860,0.03,152.0,151.96,30.31384198]
[1751826817167,0.03,152.0,151.99,7.28146505]
[1751826818274,0.03,152.0,151.99,13.86084527]
[1751826818642,0.03,152.0,151.99,6.57938022]
[1751826820344,0.03,152.0,151.97,7.28146505]
[1751826820669,0.03,152.0,151.96,23.03237693]
[1751826820868,7.31146505,152.0,151.96,30.31384198]
[1751826821267,6.31146505,152.0,151.96,30.31384198]
[1751826821568,0.03,152.02,151.97,25.93111391]
[1751826821746,7.31146505,152.02,151.98,7.28146505]
[1751826822786,7.31146505,152.02,151.99,6.57938022]
[1751826823255,0.03,152.02,151.99,6.57938022]
[1751826826776,7.31146505,152.02,151.99,6.57938022]
[1751826827071,7.28146505,152.0,151.94,33.34146505]
[1751826827271,7.28146505,151.96,151.95,6.5811122]
[1751826827474,7.28146505,151.96,151.94,6.64144803]
[1751826828363,7.28146505,151.96,151.94,0.06]
[1751826830191,7.28146505,151.97,151.94,0.06]
[1751826831374,7.28146505,151.96,151.94,0.06]
[1751826831560,7.28146505,151.95,151.94,0.06]
[1751826837690,7.28146505,151.96,151.94,0.06]
[1751826837892,7.28146505,151.95,151.94,0.06]
[1751826845897,26.0,151.96,151.94,0.06]
[1751826846193,7.28146505,151.95,151.94,0.06]
[1751826854700,39.46996505,151.95,151.94,0.06]
[1751826855994,46.05107725,151.95,151.94,0.06]
[1751826856177,27.34192363,151.95,151.94,0.06]
[1751826856578,71.99157249,151.95,151.94,0.06]
[1751826856784,45.99157249,151.95,151.94,0.06]
[1751826859880,45.99157249,151.95,151.88,0.06]
[1751826859881,1.5694,151.92,151.88,0.06]
[1751826860082,7.28146505,151.89,151.88,0.06]
[1751826865414,13.86517694,151.89,151.88,0.06]
[1751826865790,7.28146505,151.89,151.88,0.06]
[1751826866810,13.86517694,151.89,151.88,0.06]
[1751826869216,39.86517694,151.89,151.88,0.06]
[1751826869386,21.14413297,151.89,151.88,0.06]
[1751826869588,26.0,151.86,151.84,1.3605167]
[1751826869904,7.28146505,151.85,151.84,1.3605167]
[1751826871022,26.0,151.86,151.84,1.3605167]
[1751826871320,7.28146505,151.85,151.84,1.3605167]
[1751826871891,1.5605,151.89,151.84,1.3605167]
[1751826872222,7.28146505,151.85,151.84,1.3605167]
[1751826873726,33.28146505,151.85,151.84,1.3605167]
[1751826874791,18.64964886,151.84,151.82,2.39902932]
[1751826875012,33.28146505,151.83,151.82,2.39902932]
[1751826877042,51.93111391,151.81,151.8,0.2]
[1751826877207,51.93111391,151.81,151.78,0.2]
[1751826877208,18.64964886,151.8,151.78,0.2]
[1751826877389,26.0,151.75,151.68,23.07489451]
[1751826877595,7.28146505,151.72,151.68,23.07489451]
[1751826877792,7.28146505,151.72,151.68,30.35635956]
[1751826877990,7.28146505,151.72,151.68,6.592827]
[1751826878194,32.589908,151.75,151.68,6.592827]
[1751826878195,7.28146505,151.71,151.68,6.592827]
[1751826878396,7.28146505,151.69,151.64,31.38056558]
[1751826878595,26.0,151.71,151.64,2.39902932]
[1751826878596,7.28146505,151.65,151.64,2.39902932]
[1751826879020,18.64964886,151.7,151.64,8.99359539]
[1751826879212,26.0,151.71,151.64,8.99359539]
[1751826879523,7.28146505,151.68,151.66,6.69345937]
[1751826880295,26.0,151.7,151.66,6.69345937]
[1751826880296,7.28146505,151.67,151.66,0.1]
[1751826880500,7.28146505,151.67,151.66,6.69369642]
[1751826880721,7.28146505,151.68,151.66,6.69369642]
[1751826880895,26.0,151.7,151.66,6.69369642]
[1751826880896,7.28146505,151.67,151.66,6.69369642]
[1751826881322,7.28146505,151.67,151.66,0.1]
[1751826882516,7.28146505,151.67,151.66,6.69369642]
[1751826882846,26.0,151.7,151.66,6.69369642]
[1751826883331,7.28146505,151.68,151.66,6.69369642]
[1751826884130,26.0,151.7,151.66,0.1]
[1751826884435,7.28146505,151.67,151.66,0.1]
[1751826885331,6.59160898,151.71,151.66,0.1]
[1751826885332,26.0,151.69,151.66,0.1]
[1751826885501,7.28146505,151.67,151.66,0.1]
[1751826885704,26.0,151.69,151.66,0.1]
[1751826885929,7.28146505,151.67,151.66,0.1]
[1751826886527,7.28146505,151.67,151.66,6.69369642]
[1751826887354,26.0,151.69,151.66,0.1]
[1751826887559,7.28146505,151.67,151.66,0.1]
[1751826888349,46.44032673,151.67,151.66,0.1]
[1751826888654,55.78102673,151.67,151.66,0.1]
[1751826888819,26.0,151.65,151.64,2.39902932]
[1751826889013,58.97111391,151.65,151.64,2.39902932]
[1751826889530,40.32146505,151.65,151.64,2.39902932]
[1751826889729,46.91559627,151.65,151.64,2.39902932]
[1751826890534,40.32146505,151.65,151.64,2.39902932]
[1751826890918,33.28146505,151.65,151.64,2.39902932]
[1751826891544,92.40524513,151.65,151.64,2.39902932]
[1751826891744,108.89057318,151.65,151.58,249.6]
[1751826891937,7.28146505,151.59,151.58,249.6]
[1751826892132,26.0,151.61,151.58,249.6]
[1751826892335,26.0,151.63,151.58,249.6]
[1751826892540,7.28146505,151.59,151.58,249.6]
[1751826892734,7.28146505,151.59,151.58,256.1971764]
[1751826892926,146.0,151.64,151.58,263.47864145]
[1751826893240,172.0,151.63,151.58,249.6]
[1751826893446,26.0,151.6,151.58,249.6]
[1751826893634,7.28146505,151.59,151.58,249.6]
[1751826894730,26.0,151.6,151.58,249.6]
[1751826894932,146.0,151.62,151.58,249.6]
[1751826895130,7.28146505,151.59,151.58,249.6]
[1751826895545,26.0,151.62,151.58,256.19713702]
[1751826895748,7.28146505,151.6,151.58,256.19713702]
[1751826896249,7.28146505,151.59,151.58,249.6]
[1751826896454,7.04,151.65,151.58,249.6]
[1751826896768,7.28146505,151.59,151.58,249.6]
[1751826897361,7.28146505,151.6,151.58,256.19717582]
[1751826897739,26.0,151.63,151.58,256.19717582]
[1751826898054,8.0663,151.67,151.6,6.59630606]
[1751826898237,7.28146505,151.61,151.58,249.6]
[1751826898437,7.28146505,151.6,151.58,249.6]
[1751826899447,7.28146505,151.6,151.58,256.19707253]
[1751826899653,26.0,151.62,151.58,256.19707253]
[1751826899848,7.28146505,151.6,151.58,256.19707253]
[1751826900858,26.0,151.62,151.58,256.19707253]
[1751826901048,7.28146505,151.61,151.58,256.19707253]
[1751826901744,7.28146505,151.61,151.58,256.25707253]
[1751826902847,26.0,151.61,151.58,249.66]
[1751826903054,7.28146505,151.61,151.58,256.2571688]
[1751826904255,7.28146505,151.6,151.58,249.66]
[1751826904556,26.0,151.62,151.58,256.25707072]
[1751826904759,7.28146505,151.61,151.58,256.25707072]
[1751826904955,146.0,151.64,151.58,256.25707072]
[1751826905265,7.28146505,151.62,151.58,256.25707072]
[1751826905467,146.0,151.64,151.58,256.25707072]
[1751826905663,7.28146505,151.61,151.58,249.66]
[1751826905866,7.28146505,151.59,151.58,249.66]
[1751826906857,32.59598765,151.61,151.58,249.66]
[1751826907059,15.56816505,151.59,151.58,249.66]
[1751826907372,49.74816505,151.59,151.58,140.68986082]
[1751826908274,41.56816505,151.59,151.58,140.68986082]
[1751826908975,22.16490625,151.59,151.58,140.68986082]
[1751826910770,40.81455511,151.59,151.58,31.71972164]
[1751826911546,8.2371,151.63,151.58,31.71972164]
[1751826911881,7.28146505,151.59,151.58,31.71972164]
[1751826912375,7.28146505,151.6,151.58,31.71972164]
[1751826912918,7.28146505,151.59,151.58,31.71972164]
[1751826914378,13.6202,151.63,151.58,38.31689804]
[1751826914564,7.28146505,151.6,151.58,31.71972164]
[1751826914877,39.6202,151.63,151.58,38.31686196]
[1751826915081,7.28146505,151.59,151.58,31.71972164]
[1751826915584,192.21533136,151.63,151.58,31.71972164]
[1751826915751,172.0,151.63,151.58,38.31685358]
[1751826915956,7.28146505,151.62,151.58,45.59831863]
[1751826916146,153.28146505,151.63,151.58,45.59831863]
[1751826916570,7.28146505,151.62,151.58,45.59831863]
[1751826916778,7.28146505,151.61,151.58,38.31685358]
[1751826917285,146.0,151.63,151.58,45.59831863]
[1751826917286,7.28146505,151.62,151.58,45.59831863]
[1751826917779,7.28146505,151.62,151.58,38.31685358]
[1751826917961,7.28146505,151.59,151.58,31.71972164]
[1751826918566,146.0,151.63,151.58,38.31664722]
[1751826918794,7.28146505,151.61,151.58,38.31664722]
[1751826919583,146.0,151.63,151.58,38.31664722]
[1751826919787,7.28146505,151.64,151.59,7.28146505]
[1751826920088,7.28146505,151.64,151.6,7.28146505]
[1751826920292,7.28146505,151.63,151.58,62.09105329]
[1751826920464,7.23471162,151.65,151.58,62.09105329]
[1751826920784,7.23599747,151.64,151.58,54.80958824]
[1751826920988,7.23599747,151.65,151.58,38.31664722]
[1751826921281,7.28146505,151.61,151.58,38.31664722]
[1751826921583,7.28146505,151.62,151.58,38.31664722]
[1751826922097,7.28146505,151.61,151.58,38.31664722]
[1751826922261,7.28146505,151.62,151.58,38.31664722]
[1751826922460,6.6536,151.66,151.59,7.28146505]
[1751826922763,7.28146505,151.61,151.58,38.31664722]
[1751826924661,13.24744436,151.66,151.58,38.31664722]
[1751826924885,153.26776349,151.65,151.58,38.31664722]
[1751826925079,7.28146505,151.62,151.58,38.31664722]
[1751826925974,146.03,151.65,151.59,7.28146505]
[1751826926172,7.28146505,151.63,151.58,62.09105329]
[1751826926373,7.27031399,151.62,151.58,54.80958824]
[1751826926578,7.28146505,151.62,151.58,54.80958824]
[1751826926962,7.28146505,151.6,151.58,38.31664722]
[1751826927169,7.27163329,151.64,151.58,38.31664722]
[1751826927370,7.28146505,151.6,151.58,38.31664722]
[1751826929379,7.27937306,151.63,151.58,38.31664722]
[1751826929586,14.56083811,151.62,151.58,38.31664722]
[1751826929772,7.28146505,151.62,151.58,38.31664722]
[1751826930389,14.56177893,151.63,151.58,38.31664722]
[1751826930584,7.28031388,151.62,151.58,38.31664722]
[1751826931184,7.28146505,151.63,151.58,38.31664722]
[1751826931377,7.28146505,151.64,151.58,38.31664722]
[1751826931574,7.28459018,151.63,151.58,38.31664722]
[1751826931799,7.28146505,151.63,151.58,38.31664722]
[1751826932173,152.62429537,151.65,151.58,38.31664722]
[1751826932372,7.28146505,151.63,151.58,38.31664722]
[1751826933292,7.2904688,151.64,151.58,38.31664722]
[1751826933595,7.2904688,151.63,151.58,38.31664722]
[1751826933795,7.28146505,151.63,151.58,38.31664722]
[1751826933990,14.57193385,151.63,151.58,38.31664722]
[1751826934172,7.28146505,151.63,151.58,38.31664722]
[1751826934373,7.29040295,151.64,151.58,38.31664722]
[1751826934667,14.571868,151.64,151.58,62.09105329]
[1751826934872,0.03,151.65,151.61,7.28146505]
[1751826935473,0.03,151.65,151.62,7.28146505]
[1751826936686,7.31146505,151.65,151.6,23.08707123]
[1751826936894,0.03,151.65,151.6,30.36853628]
[1751826937177,0.03,151.65,151.59,20.27584886]
[1751826937178,7.28146505,151.61,151.59,6.59657051]
[1751826937380,7.28146505,151.6,151.58,31.71972164]
[1751826937575,7.28146505,151.59,151.58,31.71972164]
[1751826938092,6.3223,151.63,151.58,31.71972164]
[1751826938287,7.28146505,151.59,151.58,31.71972164]
[1751826938716,7.28146505,151.59,151.58,38.31689804]
[1751826938891,6.3223,151.63,151.58,38.31689804]
[1751826939090,7.28146505,151.59,151.58,31.71972164]
[1751826941701,13.87820625,151.59,151.58,31.71972164]
[1751826941904,187.46146505,151.59,151.58,31.71972164]
[1751826942605,153.28146505,151.59,151.58,31.71972164]
[1751826943016,146.0,151.59,151.58,31.71972164]
[1751826943184,153.28146505,151.59,151.58,31.71972164]
[1751826944096,146.0,151.59,151.58,38.31689804]
[1751826944395,146.0,151.59,151.58,31.71972164]
[1751826944704,153.28146505,151.59,151.58,31.71972164]
[1751826945308,159.87820625,151.59,151.58,31.71972164]
[1751826945605,21.1631339,151.59,151.58,31.71972164]
[1751826945790,21.1631339,151.59,151.53,1.3605167]
[1751826946110,7.28146505,151.54,151.53,1.3605167]
[1751826946904,180.22,151.58,151.53,1.3605167]
[1751826947101,7.28146505,151.54,151.53,1.3605167]
[1751826947798,7.28146505,151.56,151.53,7.9598317]
[1751826948208,7.28146505,151.55,151.53,7.9598317]
[1751826949592,7.28146505,151.54,151.53,7.9598317]
[1751826949917,7.28146505,151.54,151.53,1.3605167]
[1751826959724,1.6527,151.56,151.53,1.3605167]
[1751826959921,7.28146505,151.54,151.53,1.3605167]
[1751826960711,8.25080169,151.56,151.53,1.3605167]
[1751826961008,7.28146505,151.54,151.53,1.3605167]
[1751826962128,26.0,151.51,151.47,2.39902932]
[1751826962330,7.28146505,151.48,151.47,2.39902932]
[1751826963123,147.6527,151.5,151.47,2.39902932]
[1751826963332,6.3837,151.53,151.47,2.39902932]
[1751826963509,7.28146505,151.52,151.47,9.68049437]
[1751826963717,7.28146505,151.52,151.48,7.28146505]
[1751826964012,7.28146505,151.52,151.48,14.70945512]
[1751826964199,7.28146505,151.52,151.48,7.42799007]
[1751826964403,7.28146505,151.51,151.48,7.42799007]
[1751826965327,33.22,151.54,151.48,7.42799007]
[1751826965525,7.28146505,151.52,151.48,7.42799007]
[1751826967014,7.28146505,151.51,151.48,7.42799007]
[1751826967525,146.0,151.53,151.49,7.28146505]
[1751826967909,7.28146505,151.51,151.48,7.42799007]
[1751826968229,7.28146505,151.5,151.48,7.42799007]
[1751826968537,7.28146505,151.51,151.48,7.42799007]
[1751826969601,7.28146505,151.5,151.48,7.42799007]
[1751826971912,7.28146505,151.49,151.48,7.42799007]
[1751826973012,152.59941356,151.53,151.48,7.42799007]
[1751826973235,7.28146505,151.49,151.48,7.42799007]
[1751826973608,7.28146505,151.49,151.48,0.8268156]
[1751826974735,13.88256083,151.49,151.48,0.8268156]
[1751826977430,7.28146505,151.49,151.48,0.8268156]
[1751826978238,13.88256083,151.49,151.48,0.8268156]
[1751826978838,7.28146505,151.49,151.48,0.8268156]
[1751826981052,13.88256083,151.49,151.48,0.8268156]
[1751826981342,7.28146505,151.49,151.48,0.8268156]
[1751826981539,26.0,151.5,151.48,0.8268156]
[1751826981735,7.28146505,151.49,151.48,0.8268156]
[1751826982538,39.3282,151.51,151.48,7.42834715]
[1751826982539,7.22,151.51,151.48,7.42834715]
[1751826982725,7.28146505,151.5,151.48,7.42834715]
[1751826984340,7.28146505,151.5,151.48,0.8268156]
[1751826984559,7.28146505,151.5,151.48,7.42827668]
[1751826984733,7.22,151.51,151.48,7.42827668]
[1751826984933,7.28146505,151.5,151.48,7.42827668]
[1751826985625,7.28146505,151.49,151.48,0.8268156]
[1751826990444,13.88256083,151.49,151.48,0.8268156]
[1751826991449,33.22,151.51,151.48,0.8268156]
[1751826991450,7.22,151.51,151.48,0.8268156]
[1751826991631,7.28146505,151.49,151.48,0.8268156]
[1751826991828,14.50146505,151.51,151.48,7.42834715]
[1751826993449,7.22,151.51,151.48,7.42834715]
[1751826993748,14.50146505,151.51,151.48,7.42834715]
[1751826993932,7.28146505,151.51,151.48,7.42834715]
[1751826994133,7.28146505,151.52,151.48,7.42834715]
[1751826994731,7.28146505,151.51,151.48,7.42834715]
[1751826994943,7.28146505,151.5,151.48,7.42834715]
[1751826995650,7.28146505,151.51,151.48,7.42834715]
[1751826995853,26.03,151.54,151.48,7.42834715]
[1751826996038,7.28146505,151.52,151.48,14.7098122]
[1751826997742,7.28146505,151.51,151.48,7.42834715]
[1751826998051,7.28146505,151.52,151.48,7.42834715]
[1751826998544,7.28146505,151.52,151.48,23.93217603]
[1751826998847,0.03,151.54,151.48,31.21364108]
[1751826999049,7.28146505,151.52,151.48,31.21364108]
[1751826999770,146.0,151.53,151.48,23.93217603]
[1751827000063,146.0,151.53,151.48,31.21364108]
[1751827000244,153.28146505,151.53,151.49,7.28146505]
[1751827000449,146.0,151.53,151.49,7.28146505]
[1751827000976,153.28146505,151.53,151.49,7.28146505]
[1751827001351,146.0,151.53,151.49,7.28146505]
[1751827001956,146.0,151.53,151.5,6.60066006]
[1751827002163,7.28146505,151.51,151.48,0.8268156]
[1751827002477,7.28146505,151.49,151.48,0.8268156]
[1751827002662,7.28146505,151.52,151.48,0.8268156]
[1751827002980,7.28146505,151.49,151.48,0.8268156]
[1751827004234,13.88256083,151.49,151.48,0.8268156]
[1751827005964,7.28146505,151.49,151.48,0.8268156]
[1751827009366,13.88256083,151.49,151.48,0.8268156]
[1751827009562,7.28146505,151.49,151.48,0.8268156]
[1751827010169,13.88256083,151.49,151.48,0.8268156]
[1751827010668,7.28146505,151.49,151.48,0.8268156]
[1751827017170,146.0,151.5,151.48,0.8268156]
[1751827017466,153.28146505,151.5,151.48,7.42833468]
[1751827017662,7.28146505,151.49,151.48,7.42833468]
[1751827019068,6.2272,151.53,151.48,7.42833468]
[1751827019274,7.28146505,151.52,151.48,7.42833468]
[1751827021662,7.28146505,151.53,151.48,14.70979973]
[1751827021853,7.28146505,151.53,151.49,7.28146505]
[1751827022057,146.03,151.54,151.5,7.28146505]
[1751827022272,153.31146505,151.54,151.5,7.28146505]
[1751827022451,153.31146505,151.54,151.51,7.28146505]
[1751827022452,0.03,151.54,151.51,7.28146505]
[1751827022658,7.31146505,151.54,151.49,25.93111391]
[1751827022971,7.31146505,151.54,151.5,7.28146505]
[1751827023674,0.03,151.54,151.51,6.6002244]
[1751827023867,0.03,151.54,151.51,13.88168945]
[1751827024579,0.03,151.54,151.51,14.70850505]
[1751827025378,0.03,151.54,151.53,7.28146505]
[1751827025572,0.03,151.54,151.53,25.93111391]
[1751827025573,1e-08,151.54,151.53,25.93111391]
[1751827026872,1e-08,151.54,151.53,51.93111391]
[1751827027282,1e-08,151.54,151.53,58.53046717]
[1751827027764,0.03,151.63,151.54,18.64964886]
[1751827027965,0.03,151.63,151.6,7.28146505]
[1751827028557,7.31146505,151.63,151.54,19.30954063]
[1751827028872,7.28146505,151.6,151.56,7.28146505]
[1751827029378,7.28146505,151.6,151.57,6.59761166]
[1751827030084,7.28146505,151.61,151.57,6.59761166]
[1751827030458,7.28146505,151.61,151.57,13.87907671]
[1751827030658,7.28146505,151.62,151.57,13.87907671]
[1751827031465,7.28146505,151.62,151.58,7.28146505]
[1751827031664,0.03,151.63,151.58,7.28146505]
[1751827031970,7.31146505,151.63,151.59,7.28146505]
[1751827032170,7.28146505,151.62,151.57,23.09164082]
[1751827032381,7.28146505,151.62,151.57,30.37310587]
[1751827032684,7.28146505,151.61,151.57,6.59761166]
[1751827034282,0.03,151.63,151.57,6.59761166]
[1751827034460,7.28146505,151.61,151.57,6.59761166]
[1751827035384,7.28146505,151.6,151.57,6.59761166]
[1751827035567,7.28146505,151.58,151.53,7.28146505]
[1751827035770,7.28146505,151.57,151.53,6.59935326]
[1751827036087,7.28146505,151.56,151.53,6.59935326]
[1751827036584,7.28146505,151.59,151.54,7.28146505]
[1751827036963,7.28146505,151.58,151.54,7.28146505]
[1751827037689,7.28146505,151.58,151.55,6.59848234]
[1751827038304,7.28146505,151.59,151.55,23.09468821]
[1751827038792,7.28146505,151.59,151.55,30.37615326]
[1751827039399,7.28146505,151.59,151.55,23.09468821]
[1751827040704,7.28146505,151.58,151.54,6.59891777]
[1751827041475,7.28146505,151.59,151.55,7.28146505]
[1751827042174,146.0,151.6,151.56,7.28146505]
[1751827042380,146.0,151.6,151.57,7.28146505]
[1751827042589,146.0,151.6,151.57,6.59761166]
[1751827043182,0.03,151.59,151.57,6.59761166]
[1751827043989,0.03,151.59,151.58,7.28146505]
[1751827044884,0.03,151.59,151.58,13.87864145]
[1751827049606,0.03,151.59,151.58,6.5971764]
[1751827050981,0.03,151.59,151.58,13.87864145]
[1751827055405,0.03,151.59,151.58,6.5971764]
[1751827055606,0.03,151.59,151.58,13.87864145]
[1751827057211,0.03,151.59,151.57,18.64964886]
[1751827057511,0.03,151.59,151.57,25.93111391]